[Event "Titled Tuesday Blitz February 28 Late 2023"]
[White "Womacka, Mathias"]
[Black "Yang, Qindong"]
[WhiteFideId "4611390"]
[BlackFideId "8603758"]
[WhiteElo "2377"]
[BlackElo "2090"]
[Result "1-0"]
[Round "09"]
[TimeControl "180+2"]
[Date "2023.02.28"]
[WhiteClock "0:01:06"]
[BlackClock "0:00:32"]

1. e4 {[%clk 0:03:00]}  c5 {[%clk 0:02:55]} 2. Nf3 {[%clk 0:03:00]}  d6 {[%clk 0:02:56]} 3. d4 {[%clk 0:03:00]}  cxd4 {[%clk 0:02:57]} 4. Nxd4 {[%clk 0:03:00]}  Nf6 {[%clk 0:02:58]} 5. Nc3 {[%clk 0:03:00]}  a6 {[%clk 0:02:58]} 6. Be2 {[%clk 0:03:00]}  e5 {[%clk 0:02:59]} 7. Nb3 {[%clk 0:03:00]}  Be7 {[%clk 0:02:59]} 8. O-O {[%clk 0:03:00]}  O-O {[%clk 0:03:00]} 9. Kh1 {[%clk 0:03:00]}  Nc6 {[%clk 0:02:59]} 10. f4 {[%clk 0:02:59]}  b5 {[%clk 0:02:59]} 11. a4 {[%clk 0:02:59]}  b4 {[%clk 0:02:56]} 12. Nd5 {[%clk 0:03:00]}  a5 {[%clk 0:02:39]} 13. Nxe7+ {[%clk 0:02:45]}  Qxe7 {[%clk 0:02:35]} 14. fxe5 {[%clk 0:02:45]}  Qxe5 {[%clk 0:02:15]} 15. Bf4 {[%clk 0:02:38]}  Qxe4 {[%clk 0:02:00]} 16. Bf3 {[%clk 0:02:22]}  Qc4 {[%clk 0:01:20]} 17. Qxd6 {[%clk 0:02:21]}  Ra6 {[%clk 0:01:06]} 18. Qc5 {[%clk 0:01:57]}  Qxf4 {[%clk 0:00:57]} 19. Bxc6 {[%clk 0:01:47]}  Qh4 {[%clk 0:00:51]} 20. Bb5 {[%clk 0:01:23]}  Ng4 {[%clk 0:00:43]} 21. h3 {[%clk 0:01:23]}  Rh6 {[%clk 0:00:41]} 22. Rae1 {[%clk 0:01:07]}  Bb7 {[%clk 0:00:37]} 23. Qxf8+ {[%clk 0:01:05]}  Kxf8 {[%clk 0:00:32]} 24. Re8# {[%clk 0:01:06]} 1-0


[Site "https://www.chess.com"]

[Event "Titled Tuesday Blitz February 28 Late 2023"]
[White "Pinheiro, Iung Alicio de O."]
[Black "Mujumdar, Sameer"]
[WhiteFideId "2104350"]
[BlackFideId "2029707"]
[WhiteElo "2283"]
[BlackElo "2104"]
[Result "1-0"]
[Round "09"]
[TimeControl "180+2"]
[Date "2023.02.28"]
[WhiteClock "0:00:04"]
[BlackClock "0:00:03"]

1. e4 {[%clk 0:02:53]}  c5 {[%clk 0:02:59]} 2. Nf3 {[%clk 0:02:49]}  d6 {[%clk 0:02:58]} 3. Nc3 {[%clk 0:02:45]}  Nf6 {[%clk 0:02:58]} 4. d4 {[%clk 0:02:41]}  cxd4 {[%clk 0:02:58]} 5. Nxd4 {[%clk 0:02:42]}  a6 {[%clk 0:02:59]} 6. a3 {[%clk 0:02:35]}  e6 {[%clk 0:02:50]} 7. g4 {[%clk 0:02:31]}  Be7 {[%clk 0:02:49]} 8. g5 {[%clk 0:02:28]}  Nfd7 {[%clk 0:02:49]} 9. Rg1 {[%clk 0:02:12]}  Nc6 {[%clk 0:02:47]} 10. Be3 {[%clk 0:01:53]}  Qc7 {[%clk 0:02:42]} 11. f4 {[%clk 0:01:39]}  b5 {[%clk 0:02:06]} 12. Qf3 {[%clk 0:01:31]}  Bb7 {[%clk 0:02:04]} 13. Nxc6 {[%clk 0:00:57]}  Bxc6 {[%clk 0:02:02]} 14. Bd4 {[%clk 0:00:57]}  e5 {[%clk 0:01:57]} 15. Be3 {[%clk 0:00:53]}  exf4 {[%clk 0:01:57]} 16. Bxf4 {[%clk 0:00:52]}  Ne5 {[%clk 0:01:57]} 17. Qg3 {[%clk 0:00:50]}  O-O {[%clk 0:01:52]} 18. Be2 {[%clk 0:00:38]}  Rab8 {[%clk 0:01:46]} 19. O-O-O {[%clk 0:00:18]}  b4 {[%clk 0:01:44]} 20. axb4 {[%clk 0:00:18]}  Rxb4 {[%clk 0:01:44]} 21. Bxe5 {[%clk 0:00:15]}  dxe5 {[%clk 0:01:42]} 22. Nd5 {[%clk 0:00:15]}  Bxd5 {[%clk 0:01:41]} 23. Rxd5 {[%clk 0:00:16]}  Rc8 {[%clk 0:01:07]} 24. Bd3 {[%clk 0:00:14]}  Qb6 {[%clk 0:00:51]} 25. Kd2 {[%clk 0:00:12]}  Rxb2 {[%clk 0:00:36]} 26. Rc1 {[%clk 0:00:11]}  Bc5 {[%clk 0:00:28]} 27. Ke2 {[%clk 0:00:08]}  Bd4 {[%clk 0:00:26]} 28. h4 {[%clk 0:00:08]}  a5 {[%clk 0:00:19]} 29. h5 {[%clk 0:00:08]}  a4 {[%clk 0:00:18]} 30. g6 {[%clk 0:00:08]}  hxg6 {[%clk 0:00:17]} 31. hxg6 {[%clk 0:00:09]}  Qxg6 {[%clk 0:00:15]} 32. Qxg6 {[%clk 0:00:09]}  fxg6 {[%clk 0:00:16]} 33. Ra5 {[%clk 0:00:10]}  Rb4 {[%clk 0:00:14]} 34. Rf1 {[%clk 0:00:07]}  Bb2 {[%clk 0:00:12]} 35. Ra6 {[%clk 0:00:07]}  a3 {[%clk 0:00:12]} 36. Rg1 {[%clk 0:00:07]}  Rf8 {[%clk 0:00:08]} 37. Rgxg6 {[%clk 0:00:06]}  Rb7 {[%clk 0:00:08]} 38. Bc4+ {[%clk 0:00:05]}  Kh8 {[%clk 0:00:07]} 39. Rg2 {[%clk 0:00:05]}  Rf6 {[%clk 0:00:03]} 40. Ra8+ {[%clk 0:00:01]}  Kh7 {[%clk 0:00:03]} 41. Bg8+ {[%clk 0:00:01]}  Kh6 {[%clk 0:00:03]} 42. Bd5 {[%clk 0:00:01]}  g6 {[%clk 0:00:03]} 43. Rh8+ {[%clk 0:00:02]}  Kg7 {[%clk 0:00:03]} 44. Rg8+ {[%clk 0:00:03]}  Kh7 {[%clk 0:00:03]} 45. Rh2# {[%clk 0:00:04]} 1-0


[Site "https://www.chess.com"]

[Event "Titled Tuesday Blitz February 28 Late 2023"]
[White "Buchenau, Frank"]
[Black "Sztokbant, Bernardo Vainzoff"]
[WhiteFideId "4604350"]
[BlackFideId "2115956"]
[WhiteElo "2157"]
[BlackElo "2222"]
[Result "0-1"]
[Round "09"]
[TimeControl "180+2"]
[Date "2023.02.28"]
[WhiteClock "0:00:16"]
[BlackClock "0:00:04"]

1. e4 {[%clk 0:03:00]}  c5 {[%clk 0:03:00]} 2. Nf3 {[%clk 0:03:00]}  Nc6 {[%clk 0:02:59]} 3. Bb5 {[%clk 0:03:00]}  e6 {[%clk 0:02:59]} 4. Bxc6 {[%clk 0:03:00]}  bxc6 {[%clk 0:03:00]} 5. d3 {[%clk 0:02:59]}  d6 {[%clk 0:03:00]} 6. e5 {[%clk 0:02:54]}  d5 {[%clk 0:02:59]} 7. c4 {[%clk 0:02:52]}  Ne7 {[%clk 0:02:59]} 8. O-O {[%clk 0:02:51]}  Ng6 {[%clk 0:02:59]} 9. Qe2 {[%clk 0:02:51]}  Be7 {[%clk 0:02:59]} 10. g3 {[%clk 0:02:49]}  O-O {[%clk 0:02:59]} 11. h4 {[%clk 0:02:49]}  f6 {[%clk 0:03:00]} 12. Nc3 {[%clk 0:02:26]}  Qc7 {[%clk 0:02:56]} 13. h5 {[%clk 0:02:21]}  Nxe5 {[%clk 0:02:55]} 14. Nxe5 {[%clk 0:02:14]}  fxe5 {[%clk 0:02:54]} 15. Qg4 {[%clk 0:01:57]}  Bf6 {[%clk 0:02:42]} 16. h6 {[%clk 0:01:48]}  g6 {[%clk 0:02:41]} 17. Bg5 {[%clk 0:01:47]}  Bh8 {[%clk 0:02:28]} 18. Rae1 {[%clk 0:01:42]}  Qf7 {[%clk 0:02:27]} 19. f4 {[%clk 0:01:39]}  e4 {[%clk 0:01:11]} 20. dxe4 {[%clk 0:01:35]}  e5 {[%clk 0:01:12]} 21. Qe2 {[%clk 0:01:14]}  Bh3 {[%clk 0:01:07]} 22. Rf2 {[%clk 0:01:13]}  d4 {[%clk 0:00:51]} 23. Na4 {[%clk 0:01:13]}  Bf6 {[%clk 0:00:31]} 24. Nxc5 {[%clk 0:01:02]}  Bxg5 {[%clk 0:00:27]} 25. fxg5 {[%clk 0:01:02]}  Qe7 {[%clk 0:00:25]} 26. Nd3 {[%clk 0:00:51]}  Qxg5 {[%clk 0:00:24]} 27. Kh2 {[%clk 0:00:39]}  Bg4 {[%clk 0:00:17]} 28. Qd2 {[%clk 0:00:34]}  Rxf2+ {[%clk 0:00:16]} 29. Qxf2 {[%clk 0:00:33]}  Qxh6+ {[%clk 0:00:16]} 30. Kg1 {[%clk 0:00:32]}  Rf8 {[%clk 0:00:16]} 31. Qh2 {[%clk 0:00:32]}  Qg5 {[%clk 0:00:14]} 32. Qh4 {[%clk 0:00:26]}  Qd2 {[%clk 0:00:08]} 33. Qxg4 {[%clk 0:00:25]}  Qxd3 {[%clk 0:00:07]} 34. Qe6+ {[%clk 0:00:25]}  Rf7 {[%clk 0:00:03]} 35. Qe8+ {[%clk 0:00:25]}  Kg7 {[%clk 0:00:03]} 36. Qxe5+ {[%clk 0:00:24]}  Kg8 {[%clk 0:00:03]} 37. Qe8+ {[%clk 0:00:24]}  Kg7 {[%clk 0:00:03]} 38. Qe5+ {[%clk 0:00:23]}  Kh6 {[%clk 0:00:03]} 39. Kg2 {[%clk 0:00:18]}  Qd2+ {[%clk 0:00:03]} 40. Kh3 {[%clk 0:00:18]}  Qxe1 {[%clk 0:00:03]} 41. Qe8 {[%clk 0:00:16]}  Qh1+ {[%clk 0:00:03]} 42. Kg4 {[%clk 0:00:16]}  Qh5# {[%clk 0:00:04]} 0-1


[Site "https://www.chess.com"]

[Event "Titled Tuesday Blitz February 28 Late 2023"]
[White "Bouget, Alexandre"]
[Black "Kleiman, Jake"]
[WhiteFideId "681318"]
[BlackFideId "2020041"]
[WhiteElo "2177"]
[BlackElo "2501"]
[Result "1-0"]
[Round "09"]
[TimeControl "180+2"]
[Date "2023.02.28"]
[WhiteClock "0:00:11"]
[BlackClock "0:00:07"]

1. d4 {[%clk 0:02:53]}  Nf6 {[%clk 0:02:58]} 2. c4 {[%clk 0:02:50]}  e6 {[%clk 0:02:59]} 3. Nc3 {[%clk 0:02:50]}  Bb4 {[%clk 0:02:59]} 4. a3 {[%clk 0:02:50]}  Bxc3+ {[%clk 0:02:52]} 5. bxc3 {[%clk 0:02:51]}  O-O {[%clk 0:02:52]} 6. f3 {[%clk 0:02:51]}  Nh5 {[%clk 0:02:50]} 7. Nh3 {[%clk 0:02:49]}  f5 {[%clk 0:02:50]} 8. Bg5 {[%clk 0:02:48]}  Qe8 {[%clk 0:02:50]} 9. Nf2 {[%clk 0:02:40]}  d6 {[%clk 0:02:35]} 10. e4 {[%clk 0:02:38]}  e5 {[%clk 0:02:27]} 11. d5 {[%clk 0:02:32]}  Na6 {[%clk 0:02:21]} 12. exf5 {[%clk 0:02:25]}  Rxf5 {[%clk 0:02:15]} 13. Be3 {[%clk 0:02:19]}  Rf8 {[%clk 0:02:07]} 14. Bd3 {[%clk 0:02:14]}  Nf4 {[%clk 0:01:59]} 15. Bxf4 {[%clk 0:02:09]}  Rxf4 {[%clk 0:01:54]} 16. Ne4 {[%clk 0:02:03]}  Rf8 {[%clk 0:01:40]} 17. O-O {[%clk 0:01:59]}  Bf5 {[%clk 0:01:40]} 18. Rb1 {[%clk 0:01:52]}  Bxe4 {[%clk 0:01:37]} 19. Bxe4 {[%clk 0:01:51]}  Nc5 {[%clk 0:01:38]} 20. Qc2 {[%clk 0:01:49]}  Qh5 {[%clk 0:01:32]} 21. Rb5 {[%clk 0:01:30]}  b6 {[%clk 0:01:32]} 22. a4 {[%clk 0:01:20]}  a5 {[%clk 0:01:31]} 23. Rfb1 {[%clk 0:01:04]}  Rf4 {[%clk 0:01:29]} 24. Rxc5 {[%clk 0:01:00]}  dxc5 {[%clk 0:01:26]} 25. d6 {[%clk 0:00:54]}  Raf8 {[%clk 0:01:14]} 26. dxc7 {[%clk 0:00:52]}  Qe8 {[%clk 0:00:34]} 27. Qd3 {[%clk 0:00:27]}  R4f6 {[%clk 0:00:27]} 28. Bb7 {[%clk 0:00:18]}  e4 {[%clk 0:00:12]} 29. Qxe4 {[%clk 0:00:14]}  Qd7 {[%clk 0:00:11]} 30. Qd5+ {[%clk 0:00:12]}  Qxd5 {[%clk 0:00:06]} 31. Bxd5+ {[%clk 0:00:11]}  Kh8 {[%clk 0:00:07]} 32. Bb7 {[%clk 0:00:11]} 1-0


[Site "https://www.chess.com"]

[Event "Titled Tuesday Blitz February 28 Late 2023"]
[White "Ansh M Shah"]
[Black "Drnovsek, Gal"]
[WhiteFideId "25033379"]
[BlackFideId "14607077"]
[WhiteElo "2084"]
[BlackElo "2293"]
[Result "1-0"]
[Round "09"]
[TimeControl "180+2"]
[Date "2023.02.28"]
[WhiteClock "0:00:11"]
[BlackClock "0:00:59"]

1. d4 {[%clk 0:03:00]}  Nf6 {[%clk 0:02:58]} 2. c4 {[%clk 0:03:01]}  Nc6 {[%clk 0:02:52]} 3. d5 {[%clk 0:03:01]}  Ne5 {[%clk 0:02:51]} 4. e3 {[%clk 0:02:58]}  e6 {[%clk 0:02:51]} 5. Nc3 {[%clk 0:02:56]}  Bb4 {[%clk 0:02:49]} 6. Bd2 {[%clk 0:02:56]}  O-O {[%clk 0:02:44]} 7. a3 {[%clk 0:02:55]}  Be7 {[%clk 0:02:33]} 8. Nf3 {[%clk 0:02:48]}  Ng6 {[%clk 0:02:23]} 9. h4 {[%clk 0:02:45]}  h5 {[%clk 0:02:22]} 10. Ng5 {[%clk 0:02:44]}  e5 {[%clk 0:02:20]} 11. Be2 {[%clk 0:02:44]}  d6 {[%clk 0:02:00]} 12. Bxh5 {[%clk 0:02:39]}  Nxh4 {[%clk 0:01:54]} 13. Rxh4 {[%clk 0:02:34]}  Nh7 {[%clk 0:01:53]} 14. Nxf7 {[%clk 0:01:01]}  Qd7 {[%clk 0:01:38]} 15. Rh1 {[%clk 0:00:50]}  Qf5 {[%clk 0:01:19]} 16. g4 {[%clk 0:00:29]}  Qd7 {[%clk 0:01:07]} 17. Bg6 {[%clk 0:00:15]}  Ng5 {[%clk 0:00:59]} 18. Rh8# {[%clk 0:00:11]} 1-0


[Site "https://www.chess.com"]

[Event "Titled Tuesday Blitz February 28 Late 2023"]
[White "Petukhov, Dmitry"]
[Black "Lopez Del Alamo, Antonio"]
[WhiteFideId "4142748"]
[BlackFideId "2227339"]
[WhiteElo "2311"]
[BlackElo "2175"]
[Result "1-0"]
[Round "09"]
[TimeControl "180+2"]
[Date "2023.02.28"]
[WhiteClock "0:00:22"]
[BlackClock "0:00:20"]

1. e4 {[%clk 0:02:59]}  c5 {[%clk 0:02:59]} 2. c3 {[%clk 0:02:59]}  d5 {[%clk 0:02:56]} 3. exd5 {[%clk 0:03:00]}  Qxd5 {[%clk 0:02:56]} 4. d4 {[%clk 0:03:01]}  Nf6 {[%clk 0:02:56]} 5. Nf3 {[%clk 0:03:02]}  Nc6 {[%clk 0:02:55]} 6. Be2 {[%clk 0:03:02]}  Bg4 {[%clk 0:02:55]} 7. O-O {[%clk 0:03:02]}  e6 {[%clk 0:02:55]} 8. h3 {[%clk 0:03:02]}  Bh5 {[%clk 0:02:54]} 9. Be3 {[%clk 0:03:02]}  cxd4 {[%clk 0:02:55]} 10. cxd4 {[%clk 0:03:03]}  Be7 {[%clk 0:02:55]} 11. Nc3 {[%clk 0:03:03]}  Qd6 {[%clk 0:02:55]} 12. Qb3 {[%clk 0:03:04]}  O-O {[%clk 0:02:52]} 13. Rfd1 {[%clk 0:03:04]}  a6 {[%clk 0:02:49]} 14. d5 {[%clk 0:02:59]}  exd5 {[%clk 0:02:47]} 15. Nxd5 {[%clk 0:02:58]}  Bxf3 {[%clk 0:02:26]} 16. Bxf3 {[%clk 0:02:37]}  Nxd5 {[%clk 0:02:19]} 17. Bxd5 {[%clk 0:02:34]}  Qb4 {[%clk 0:02:06]} 18. Qxb4 {[%clk 0:02:13]}  Nxb4 {[%clk 0:02:07]} 19. Bxb7 {[%clk 0:02:09]}  Rab8 {[%clk 0:02:05]} 20. Be4 {[%clk 0:02:10]}  Bf6 {[%clk 0:01:59]} 21. a3 {[%clk 0:02:07]}  Rfe8 {[%clk 0:01:54]} 22. Bf4 {[%clk 0:01:42]}  Rbc8 {[%clk 0:01:30]} 23. Bb7 {[%clk 0:01:34]}  Rc4 {[%clk 0:01:28]} 24. Re1 {[%clk 0:01:12]}  Rd8 {[%clk 0:01:15]} 25. axb4 {[%clk 0:00:50]}  Rxf4 {[%clk 0:01:11]} 26. Re4 {[%clk 0:00:27]}  Rxe4 {[%clk 0:00:23]} 27. Bxe4 {[%clk 0:00:28]}  Rd4 {[%clk 0:00:23]} 28. Rxa6 {[%clk 0:00:25]}  Be5 {[%clk 0:00:20]} 29. Ra8+ {[%clk 0:00:22]} 1-0


[Site "https://www.chess.com"]

[Event "Titled Tuesday Blitz February 28 Late 2023"]
[White "Smith, Garrett L"]
[Black "Petrovic, Aleksa"]
[WhiteFideId "2024829"]
[BlackFideId "967629"]
[WhiteElo "2311"]
[BlackElo "2304"]
[Result "0-1"]
[Round "09"]
[TimeControl "180+2"]
[Date "2023.02.28"]
[WhiteClock "0:00:01"]
[BlackClock "0:00:03"]

1. e4 {[%clk 0:02:58]}  c6 {[%clk 0:02:58]} 2. d4 {[%clk 0:02:57]}  d5 {[%clk 0:02:58]} 3. e5 {[%clk 0:02:58]}  c5 {[%clk 0:02:57]} 4. Nf3 {[%clk 0:02:58]}  cxd4 {[%clk 0:02:56]} 5. Nxd4 {[%clk 0:02:57]}  Nc6 {[%clk 0:02:56]} 6. Nxc6 {[%clk 0:02:57]}  bxc6 {[%clk 0:02:56]} 7. c4 {[%clk 0:02:57]}  e6 {[%clk 0:02:56]} 8. Nc3 {[%clk 0:02:55]}  Bc5 {[%clk 0:02:52]} 9. Bd3 {[%clk 0:02:36]}  Ne7 {[%clk 0:02:44]} 10. O-O {[%clk 0:02:34]}  Ng6 {[%clk 0:02:37]} 11. Qe2 {[%clk 0:02:29]}  O-O {[%clk 0:02:34]} 12. Bd2 {[%clk 0:02:25]}  Rb8 {[%clk 0:02:29]} 13. b3 {[%clk 0:02:14]}  a5 {[%clk 0:02:16]} 14. Rac1 {[%clk 0:01:55]}  Bd7 {[%clk 0:02:10]} 15. Kh1 {[%clk 0:01:46]}  Ba7 {[%clk 0:01:56]} 16. f4 {[%clk 0:01:44]}  f6 {[%clk 0:01:52]} 17. Qh5 {[%clk 0:01:40]}  Be8 {[%clk 0:01:27]} 18. Qh3 {[%clk 0:01:28]}  fxe5 {[%clk 0:01:18]} 19. fxe5 {[%clk 0:01:24]}  Bf7 {[%clk 0:01:11]} 20. cxd5 {[%clk 0:01:22]}  cxd5 {[%clk 0:01:04]} 21. Nb5 {[%clk 0:01:18]}  Rxb5 {[%clk 0:01:01]} 22. Bxb5 {[%clk 0:01:18]}  Nxe5 {[%clk 0:01:01]} 23. a4 {[%clk 0:01:05]}  Ng6 {[%clk 0:00:53]} 24. Qg3 {[%clk 0:01:01]}  e5 {[%clk 0:00:48]} 25. Bg5 {[%clk 0:01:01]}  Qb6 {[%clk 0:00:43]} 26. Rc6 {[%clk 0:00:52]}  Qd4 {[%clk 0:00:39]} 27. Rc7 {[%clk 0:00:47]}  Bb6 {[%clk 0:00:27]} 28. Rb7 {[%clk 0:00:44]}  Be6 {[%clk 0:00:23]} 29. Rc1 {[%clk 0:00:37]}  Rc8 {[%clk 0:00:19]} 30. Rf1 {[%clk 0:00:30]}  Rf8 {[%clk 0:00:15]} 31. Qe1 {[%clk 0:00:22]}  Rxf1+ {[%clk 0:00:12]} 32. Qxf1 {[%clk 0:00:23]}  h6 {[%clk 0:00:11]} 33. Bc1 {[%clk 0:00:22]}  e4 {[%clk 0:00:09]} 34. h3 {[%clk 0:00:20]}  e3 {[%clk 0:00:08]} 35. Rb8+ {[%clk 0:00:19]}  Kh7 {[%clk 0:00:08]} 36. Bd3 {[%clk 0:00:16]}  Bc7 {[%clk 0:00:08]} 37. Rb7 {[%clk 0:00:15]}  Qe5 {[%clk 0:00:08]} 38. Rxc7 {[%clk 0:00:13]}  Qxc7 {[%clk 0:00:09]} 39. Bxe3 {[%clk 0:00:08]}  Qe5 {[%clk 0:00:06]} 40. Qe2 {[%clk 0:00:07]}  d4 {[%clk 0:00:05]} 41. Qc2 {[%clk 0:00:03]}  Qxe3 {[%clk 0:00:04]} 42. Bxg6+ {[%clk 0:00:03]}  Kh8 {[%clk 0:00:04]} 43. Qc5 {[%clk 0:00:01]}  Qe1+ {[%clk 0:00:04]} 44. Kh2 {[%clk 0:00:02]}  Qf2 {[%clk 0:00:04]} 45. Qd6 {[%clk 0:00:01]}  Qf6 {[%clk 0:00:03]} 0-1


[Site "https://www.chess.com"]

[Event "Titled Tuesday Blitz February 28 Late 2023"]
[White "Paszewski, Mateusz"]
[Black "Pino Perez, Lazaro"]
[WhiteFideId "1141058"]
[BlackFideId "3517055"]
[WhiteElo "2223"]
[BlackElo "2170"]
[Result "1-0"]
[Round "09"]
[TimeControl "180+2"]
[Date "2023.02.28"]
[WhiteClock "0:01:35"]
[BlackClock "0:00:22"]

1. d4 {[%clk 0:03:00]}  d5 {[%clk 0:02:51]} 2. Nf3 {[%clk 0:03:00]}  Nf6 {[%clk 0:02:46]} 3. Bf4 {[%clk 0:03:01]}  e6 {[%clk 0:02:35]} 4. e3 {[%clk 0:03:00]}  Bd6 {[%clk 0:02:36]} 5. Nbd2 {[%clk 0:03:00]}  O-O {[%clk 0:02:34]} 6. c3 {[%clk 0:03:00]}  c5 {[%clk 0:02:34]} 7. Bd3 {[%clk 0:02:55]}  Bxf4 {[%clk 0:02:16]} 8. exf4 {[%clk 0:02:55]}  cxd4 {[%clk 0:02:15]} 9. Nxd4 {[%clk 0:02:54]}  Qb6 {[%clk 0:02:13]} 10. Rb1 {[%clk 0:02:51]}  Qc7 {[%clk 0:02:10]} 11. g3 {[%clk 0:02:48]}  e5 {[%clk 0:02:10]} 12. fxe5 {[%clk 0:02:49]}  Qxe5+ {[%clk 0:02:11]} 13. Qe2 {[%clk 0:02:48]}  Qxe2+ {[%clk 0:02:10]} 14. Bxe2 {[%clk 0:02:45]}  Nc6 {[%clk 0:02:10]} 15. N2f3 {[%clk 0:02:42]}  Bf5 {[%clk 0:02:05]} 16. Rd1 {[%clk 0:02:42]}  Be4 {[%clk 0:02:04]} 17. O-O {[%clk 0:02:40]}  Rfe8 {[%clk 0:02:02]} 18. Rfe1 {[%clk 0:02:39]}  Rad8 {[%clk 0:01:53]} 19. Bb5 {[%clk 0:02:34]}  Bxf3 {[%clk 0:01:51]} 20. Nxf3 {[%clk 0:02:34]}  Rxe1+ {[%clk 0:01:49]} 21. Rxe1 {[%clk 0:02:33]}  Ne4 {[%clk 0:01:48]} 22. Rd1 {[%clk 0:02:29]}  Ne7 {[%clk 0:01:41]} 23. Nd4 {[%clk 0:02:21]}  a6 {[%clk 0:01:37]} 24. Bf1 {[%clk 0:02:21]}  f6 {[%clk 0:01:21]} 25. Bg2 {[%clk 0:02:21]}  Nc5 {[%clk 0:01:20]} 26. Rd2 {[%clk 0:02:14]}  Kf7 {[%clk 0:01:18]} 27. Kf1 {[%clk 0:02:09]}  Nc6 {[%clk 0:01:17]} 28. Nf5 {[%clk 0:01:58]}  Ne4 {[%clk 0:01:04]} 29. Rd1 {[%clk 0:01:57]}  g6 {[%clk 0:00:57]} 30. Ne3 {[%clk 0:01:56]}  Ke6 {[%clk 0:00:58]} 31. c4 {[%clk 0:01:43]}  d4 {[%clk 0:00:43]} 32. Bxe4 {[%clk 0:01:41]}  dxe3 {[%clk 0:00:44]} 33. Rxd8 {[%clk 0:01:42]}  Nxd8 {[%clk 0:00:43]} 34. fxe3 {[%clk 0:01:42]}  Ke5 {[%clk 0:00:40]} 35. Bd5 {[%clk 0:01:41]}  b6 {[%clk 0:00:41]} 36. Ke2 {[%clk 0:01:40]}  a5 {[%clk 0:00:38]} 37. Kd3 {[%clk 0:01:40]}  h5 {[%clk 0:00:34]} 38. b3 {[%clk 0:01:35]}  Kd6 {[%clk 0:00:22]} 39. Kd4 {[%clk 0:01:35]} 1-0


[Site "https://www.chess.com"]

[Event "Titled Tuesday Blitz February 28 Late 2023"]
[White "Carrasco Miranda, Andres"]
[Black "Balla, Tamas-Kristof"]
[WhiteFideId "3405990"]
[BlackFideId "1208497"]
[WhiteElo "2183"]
[BlackElo "2334"]
[Result "0-1"]
[Round "09"]
[TimeControl "180+2"]
[Date "2023.02.28"]
[WhiteClock "0:00:39"]
[BlackClock "0:00:15"]

1. d4 {[%clk 0:03:00]}  d5 {[%clk 0:02:59]} 2. c4 {[%clk 0:03:01]}  e6 {[%clk 0:03:00]} 3. Nf3 {[%clk 0:03:01]}  c5 {[%clk 0:02:59]} 4. g3 {[%clk 0:03:01]}  Nf6 {[%clk 0:02:55]} 5. cxd5 {[%clk 0:03:01]}  exd5 {[%clk 0:02:55]} 6. Bg2 {[%clk 0:03:02]}  Nc6 {[%clk 0:02:55]} 7. O-O {[%clk 0:03:02]}  Be6 {[%clk 0:02:55]} 8. Nc3 {[%clk 0:03:02]}  Be7 {[%clk 0:02:49]} 9. dxc5 {[%clk 0:02:59]}  Bxc5 {[%clk 0:02:50]} 10. Na4 {[%clk 0:02:59]}  Be7 {[%clk 0:02:45]} 11. Be3 {[%clk 0:02:59]}  O-O {[%clk 0:02:44]} 12. Rc1 {[%clk 0:02:59]}  Ne4 {[%clk 0:02:26]} 13. Nd4 {[%clk 0:02:57]}  Nxd4 {[%clk 0:01:53]} 14. Bxd4 {[%clk 0:02:58]}  Bf6 {[%clk 0:01:51]} 15. Nc3 {[%clk 0:02:55]}  Bxd4 {[%clk 0:01:43]} 16. Qxd4 {[%clk 0:02:54]}  Nxc3 {[%clk 0:01:41]} 17. Rxc3 {[%clk 0:02:52]}  Qd7 {[%clk 0:01:41]} 18. Rfc1 {[%clk 0:02:43]}  Rac8 {[%clk 0:01:13]} 19. Rxc8 {[%clk 0:02:41]}  Rxc8 {[%clk 0:01:14]} 20. Rxc8+ {[%clk 0:02:41]}  Qxc8 {[%clk 0:01:15]} 21. Bxd5 {[%clk 0:02:42]}  Bh3 {[%clk 0:01:11]} 22. Qc4 {[%clk 0:02:32]}  Qd7 {[%clk 0:01:03]} 23. e4 {[%clk 0:02:21]}  h6 {[%clk 0:01:03]} 24. f4 {[%clk 0:02:11]}  a6 {[%clk 0:01:02]} 25. Kf2 {[%clk 0:02:05]}  Qd6 {[%clk 0:01:01]} 26. Qd4 {[%clk 0:02:00]}  Qc7 {[%clk 0:00:53]} 27. Qc4 {[%clk 0:01:39]}  Qb6+ {[%clk 0:00:53]} 28. Ke1 {[%clk 0:01:28]}  Qg1+ {[%clk 0:00:53]} 29. Kd2 {[%clk 0:01:26]}  Qxh2+ {[%clk 0:00:50]} 30. Kc3 {[%clk 0:01:26]}  Qxg3+ {[%clk 0:00:49]} 31. Kb4 {[%clk 0:01:23]}  Qxf4 {[%clk 0:00:48]} 32. Bxb7 {[%clk 0:01:18]}  Qd6+ {[%clk 0:00:40]} 33. Ka5 {[%clk 0:01:14]}  Be6 {[%clk 0:00:26]} 34. Qxa6 {[%clk 0:00:53]}  Qd2+ {[%clk 0:00:23]} 35. Kb6 {[%clk 0:00:40]}  Qxb2+ {[%clk 0:00:22]} 36. Ka7 {[%clk 0:00:39]}  Qxa2 {[%clk 0:00:20]} 37. Qxa2 {[%clk 0:00:35]}  Bxa2 {[%clk 0:00:21]} 38. Kb6 {[%clk 0:00:36]}  g5 {[%clk 0:00:21]} 39. Kc5 {[%clk 0:00:36]}  Kg7 {[%clk 0:00:19]} 40. Kd4 {[%clk 0:00:37]}  Kg6 {[%clk 0:00:19]} 41. Ke3 {[%clk 0:00:37]}  h5 {[%clk 0:00:20]} 42. Bc8 {[%clk 0:00:38]}  Be6 {[%clk 0:00:19]} 43. Bb7 {[%clk 0:00:38]}  h4 {[%clk 0:00:19]} 44. Kf2 {[%clk 0:00:39]}  Kh5 {[%clk 0:00:19]} 45. e5 {[%clk 0:00:39]}  Kg4 {[%clk 0:00:16]} 46. Ke3 {[%clk 0:00:39]}  Kf5 {[%clk 0:00:15]} 47. Kf3 {[%clk 0:00:39]}  Kxe5 {[%clk 0:00:15]} 0-1


[Site "https://www.chess.com"]

[Event "Titled Tuesday Blitz February 28 Late 2023"]
[White "Figorito, Nick"]
[Black "reevecanada"]
[WhiteFideId "30923689"]
[WhiteElo "2374"]
[BlackElo "2472"]
[Result "0-1"]
[Round "09"]
[TimeControl "180+2"]
[Date "2023.02.28"]
[WhiteClock "0:00:01"]
[BlackClock "0:01:09"]

1. Nf3 {[%clk 0:03:00]}  d5 {[%clk 0:02:51]} 2. g3 {[%clk 0:03:00]}  c5 {[%clk 0:02:49]} 3. Bg2 {[%clk 0:03:01]}  Nf6 {[%clk 0:02:49]} 4. O-O {[%clk 0:03:01]}  e6 {[%clk 0:02:50]} 5. d4 {[%clk 0:03:01]}  Bd6 {[%clk 0:02:50]} 6. c4 {[%clk 0:03:00]}  cxd4 {[%clk 0:02:50]} 7. Nxd4 {[%clk 0:02:59]}  dxc4 {[%clk 0:02:48]} 8. Qa4+ {[%clk 0:02:39]}  Nbd7 {[%clk 0:02:43]} 9. Nb5 {[%clk 0:02:32]}  Be7 {[%clk 0:02:29]} 10. Bf4 {[%clk 0:02:31]}  e5 {[%clk 0:02:28]} 11. Bxe5 {[%clk 0:02:20]}  Nxe5 {[%clk 0:02:25]} 12. Nc7+ {[%clk 0:02:10]}  Kf8 {[%clk 0:02:24]} 13. Nxa8 {[%clk 0:02:07]}  Bc5 {[%clk 0:02:22]} 14. Na3 {[%clk 0:01:55]}  Bd7 {[%clk 0:02:19]} 15. Rad1 {[%clk 0:01:43]}  Qxa8 {[%clk 0:02:17]} 16. Qc2 {[%clk 0:01:25]}  Qc8 {[%clk 0:02:14]} 17. Qc3 {[%clk 0:01:17]}  Qc7 {[%clk 0:02:09]} 18. Bxb7 {[%clk 0:01:00]}  g6 {[%clk 0:02:00]} 19. Bg2 {[%clk 0:00:58]}  Kg7 {[%clk 0:01:57]} 20. e3 {[%clk 0:00:58]}  Be6 {[%clk 0:01:51]} 21. Nb5 {[%clk 0:00:54]}  Qb8 {[%clk 0:01:49]} 22. Nd4 {[%clk 0:00:54]}  Nd5 {[%clk 0:01:46]} 23. Nxe6+ {[%clk 0:00:51]}  fxe6 {[%clk 0:01:31]} 24. Bxd5 {[%clk 0:00:51]}  Bb4 {[%clk 0:01:30]} 25. Qd4 {[%clk 0:00:42]}  Rd8 {[%clk 0:01:27]} 26. Qh4 {[%clk 0:00:23]}  Rxd5 {[%clk 0:01:24]} 27. Qf4 {[%clk 0:00:20]}  Qd6 {[%clk 0:01:20]} 28. Rxd5 {[%clk 0:00:19]}  exd5 {[%clk 0:01:21]} 29. Qd4 {[%clk 0:00:15]}  Bc5 {[%clk 0:01:18]} 30. Qc3 {[%clk 0:00:14]}  d4 {[%clk 0:01:17]} 31. exd4 {[%clk 0:00:13]}  Bxd4 {[%clk 0:01:17]} 32. Rd1 {[%clk 0:00:07]}  Qd5 {[%clk 0:01:12]} 33. Rxd4 {[%clk 0:00:01]}  Nf3+ {[%clk 0:01:09]} 0-1


[Site "https://www.chess.com"]